[Event "Titled Tuesday Blitz March 07 Late 2023"]
[White "Carrasco Miranda, Andres"]
[Black "Musovic, Armin"]
[WhiteFideId "3405990"]
[BlackFideId "939935"]
[WhiteElo "2183"]
[BlackElo "2321"]
[Result "0-1"]
[Round "06"]
[TimeControl "180+2"]
[Date "2023.03.07"]
[WhiteClock "0:00:09"]
[BlackClock "0:01:19"]

1. d4 {[%clk 0:03:00]}  d5 {[%clk 0:02:58]} 2. c4 {[%clk 0:03:01]}  c5 {[%clk 0:02:59]} 3. cxd5 {[%clk 0:03:01]}  Nf6 {[%clk 0:02:59]} 4. Nf3 {[%clk 0:02:58]}  cxd4 {[%clk 0:02:58]} 5. Nxd4 {[%clk 0:02:57]}  Nxd5 {[%clk 0:02:58]} 6. Nb5 {[%clk 0:02:55]}  Qa5+ {[%clk 0:02:57]} 7. N1c3 {[%clk 0:02:50]}  Nxc3 {[%clk 0:02:57]} 8. Nxc3 {[%clk 0:02:49]}  Nc6 {[%clk 0:02:57]} 9. g3 {[%clk 0:02:48]}  g6 {[%clk 0:02:57]} 10. Bg2 {[%clk 0:02:48]}  Bg7 {[%clk 0:02:58]} 11. O-O {[%clk 0:02:49]}  O-O {[%clk 0:02:58]} 12. Be3 {[%clk 0:02:42]}  Rd8 {[%clk 0:02:47]} 13. Qc1 {[%clk 0:02:35]}  Bg4 {[%clk 0:02:44]} 14. Bf3 {[%clk 0:02:12]}  Bh3 {[%clk 0:02:42]} 15. Rd1 {[%clk 0:02:09]}  Nd4 {[%clk 0:02:39]} 16. Bxd4 {[%clk 0:02:08]}  Rxd4 {[%clk 0:02:39]} 17. Rxd4 {[%clk 0:02:07]}  Bxd4 {[%clk 0:02:39]} 18. Bxb7 {[%clk 0:02:02]}  Bxf2+ {[%clk 0:02:40]} 19. Kxf2 {[%clk 0:02:00]}  Qb6+ {[%clk 0:02:40]} 20. Qe3 {[%clk 0:02:00]}  Qxb7 {[%clk 0:02:40]} 21. Qf3 {[%clk 0:02:01]}  Qb6+ {[%clk 0:02:28]} 22. Qe3 {[%clk 0:01:45]}  Qxb2 {[%clk 0:02:25]} 23. Rb1 {[%clk 0:01:44]}  Qa3 {[%clk 0:02:25]} 24. Nd5 {[%clk 0:01:42]}  Qxe3+ {[%clk 0:02:25]} 25. Kxe3 {[%clk 0:01:43]}  Kf8 {[%clk 0:02:22]} 26. Nf4 {[%clk 0:01:24]}  Bf5 {[%clk 0:02:19]} 27. Rb7 {[%clk 0:01:23]}  a5 {[%clk 0:02:18]} 28. a3 {[%clk 0:01:22]}  a4 {[%clk 0:02:15]} 29. Nd5 {[%clk 0:01:21]}  Rd8 {[%clk 0:02:09]} 30. Nb6 {[%clk 0:01:05]}  Rd1 {[%clk 0:01:59]} 31. Nxa4 {[%clk 0:01:00]}  Ra1 {[%clk 0:01:59]} 32. Rb3 {[%clk 0:00:49]}  Bc2 {[%clk 0:01:55]} 33. Rb8+ {[%clk 0:00:49]}  Kg7 {[%clk 0:01:55]} 34. Nc3 {[%clk 0:00:42]}  Rxa3 {[%clk 0:01:54]} 35. Kd4 {[%clk 0:00:41]}  e5+ {[%clk 0:01:48]} 36. Kc4 {[%clk 0:00:40]}  Bf5 {[%clk 0:01:47]} 37. Rb7 {[%clk 0:00:26]}  Be6+ {[%clk 0:01:45]} 38. Kd3 {[%clk 0:00:27]}  Kh6 {[%clk 0:01:37]} 39. Rc7 {[%clk 0:00:25]}  f5 {[%clk 0:01:37]} 40. e3 {[%clk 0:00:22]}  Ra1 {[%clk 0:01:29]} 41. Nb5 {[%clk 0:00:18]}  Rd1+ {[%clk 0:01:28]} 42. Ke2 {[%clk 0:00:17]}  Rh1 {[%clk 0:01:29]} 43. Nd6 {[%clk 0:00:17]}  Rxh2+ {[%clk 0:01:29]} 44. Kf3 {[%clk 0:00:15]}  Bd5+ {[%clk 0:01:29]} 45. e4 {[%clk 0:00:14]}  fxe4+ {[%clk 0:01:30]} 46. Ke3 {[%clk 0:00:14]}  Rg2 {[%clk 0:01:29]} 47. Ne8 {[%clk 0:00:12]}  Rxg3+ {[%clk 0:01:27]} 48. Ke2 {[%clk 0:00:12]}  Be6 {[%clk 0:01:23]} 49. Nf6 {[%clk 0:00:11]}  Bg4+ {[%clk 0:01:21]} 50. Ke1 {[%clk 0:00:10]}  Bf3 {[%clk 0:01:16]} 51. Nxh7 {[%clk 0:00:07]}  Rg1+ {[%clk 0:01:15]} 52. Kf2 {[%clk 0:00:06]}  Rg2+ {[%clk 0:01:16]} 53. Kf1 {[%clk 0:00:05]}  e3 {[%clk 0:01:15]} 54. Nf6 {[%clk 0:00:05]}  Rf2+ {[%clk 0:01:13]} 55. Ke1 {[%clk 0:00:05]}  Kg5 {[%clk 0:01:13]} 56. Nh7+ {[%clk 0:00:03]}  Kg4 {[%clk 0:01:12]} 57. Rc4+ {[%clk 0:00:03]}  e4 {[%clk 0:01:11]} 58. Nf6+ {[%clk 0:00:04]}  Kf5 {[%clk 0:01:11]} 59. Nd5 {[%clk 0:00:04]}  Ke5 {[%clk 0:01:10]} 60. Nxe3 {[%clk 0:00:04]}  Re2+ {[%clk 0:01:11]} 61. Kf1 {[%clk 0:00:04]}  Rxe3 {[%clk 0:01:12]} 62. Ra4 {[%clk 0:00:04]}  Re2 {[%clk 0:01:12]} 63. Ra3 {[%clk 0:00:03]}  Kf4 {[%clk 0:01:12]} 64. Ra8 {[%clk 0:00:04]}  Kg3 {[%clk 0:01:12]} 65. Rg8 {[%clk 0:00:04]}  Rf2+ {[%clk 0:01:12]} 66. Kg1 {[%clk 0:00:03]}  Rg2+ {[%clk 0:01:11]} 67. Kf1 {[%clk 0:00:04]}  Kf4 {[%clk 0:01:10]} 68. Rf8+ {[%clk 0:00:03]}  Ke3 {[%clk 0:01:11]} 69. Ra8 {[%clk 0:00:02]}  Rd2 {[%clk 0:01:11]} 70. Ra3+ {[%clk 0:00:02]}  Rd3 {[%clk 0:01:12]} 71. Ra1 {[%clk 0:00:03]}  Rd1+ {[%clk 0:01:12]} 72. Rxd1 {[%clk 0:00:03]}  Bxd1 {[%clk 0:01:13]} 73. Ke1 {[%clk 0:00:03]}  Bb3 {[%clk 0:01:14]} 74. Kf1 {[%clk 0:00:04]}  Bf7 {[%clk 0:01:15]} 75. Kg2 {[%clk 0:00:05]}  Be8 {[%clk 0:01:16]} 76. Kg3 {[%clk 0:00:05]}  Kd2 {[%clk 0:01:17]} 77. Kg4 {[%clk 0:00:06]}  e3 {[%clk 0:01:18]} 78. Kg5 {[%clk 0:00:07]}  e2 {[%clk 0:01:19]} 79. Kf6 {[%clk 0:00:08]}  Bd7 {[%clk 0:01:19]} 80. Ke7 {[%clk 0:00:08]}  Bf5 {[%clk 0:01:20]} 81. Kd6 {[%clk 0:00:09]}  e1=Q {[%clk 0:01:20]} 82. Kc5 {[%clk 0:00:09]}  g5 {[%clk 0:01:19]} 0-1


[Site "https://www.chess.com"]

[Event "Titled Tuesday Blitz March 07 Late 2023"]
[White "Rego, Pedro Filipe"]
[Black "Almeida Quintana, Omar"]
[WhiteFideId "1904310"]
[BlackFideId "3503313"]
[WhiteElo "2193"]
[BlackElo "2530"]
[Result "0-1"]
[Round "06"]
[TimeControl "180+2"]
[Date "2023.03.07"]
[WhiteClock "0:01:06"]
[BlackClock "0:02:05"]

1. d4 {[%clk 0:03:00]}  g6 {[%clk 0:02:59]} 2. e4 {[%clk 0:02:53]}  Bg7 {[%clk 0:02:59]} 3. Nf3 {[%clk 0:02:51]}  d6 {[%clk 0:03:00]} 4. Bd3 {[%clk 0:02:50]}  Nf6 {[%clk 0:02:59]} 5. c3 {[%clk 0:02:49]}  O-O {[%clk 0:02:58]} 6. O-O {[%clk 0:02:49]}  Nc6 {[%clk 0:02:58]} 7. h3 {[%clk 0:02:45]}  e5 {[%clk 0:02:58]} 8. Be3 {[%clk 0:02:43]}  Nd7 {[%clk 0:02:58]} 9. Nbd2 {[%clk 0:02:36]}  h6 {[%clk 0:02:56]} 10. dxe5 {[%clk 0:02:32]}  Ndxe5 {[%clk 0:02:54]} 11. Nxe5 {[%clk 0:02:28]}  Nxe5 {[%clk 0:02:55]} 12. Be2 {[%clk 0:02:25]}  f5 {[%clk 0:02:54]} 13. exf5 {[%clk 0:02:16]}  Bxf5 {[%clk 0:02:55]} 14. Nc4 {[%clk 0:02:16]}  Nxc4 {[%clk 0:02:51]} 15. Bxc4+ {[%clk 0:02:16]}  Kh8 {[%clk 0:02:49]} 16. Qd2 {[%clk 0:02:14]}  Qh4 {[%clk 0:02:47]} 17. Bd3 {[%clk 0:02:04]}  Bxh3 {[%clk 0:02:27]} 18. gxh3 {[%clk 0:01:57]}  Rf3 {[%clk 0:02:27]} 19. Rfe1 {[%clk 0:01:40]}  Rxh3 {[%clk 0:02:12]} 20. Bf4 {[%clk 0:01:06]}  Rh1+ {[%clk 0:02:05]} 21. Kg2 {[%clk 0:01:06]}  Qh3# {[%clk 0:02:05]} 0-1


[Site "https://www.chess.com"]

[Event "Titled Tuesday Blitz March 07 Late 2023"]
[White "Needleman, Alejandro"]
[Black "Dragomirescu, Angela"]
[WhiteFideId "100730"]
[BlackFideId "1209914"]
[WhiteElo "2230"]
[BlackElo "2171"]
[Result "0-1"]
[Round "06"]
[TimeControl "180+2"]
[Date "2023.03.07"]
[WhiteClock "0:00:45"]
[BlackClock "0:00:21"]

1. e4 {[%clk 0:03:00]}  e5 {[%clk 0:02:56]} 2. Nf3 {[%clk 0:03:00]}  Nc6 {[%clk 0:02:56]} 3. Bb5 {[%clk 0:03:00]}  a6 {[%clk 0:02:56]} 4. Ba4 {[%clk 0:03:01]}  Bc5 {[%clk 0:02:57]} 5. O-O {[%clk 0:03:01]}  Nge7 {[%clk 0:02:57]} 6. c3 {[%clk 0:02:57]}  Ba7 {[%clk 0:02:56]} 7. d4 {[%clk 0:02:57]}  Ng6 {[%clk 0:02:55]} 8. Bxc6 {[%clk 0:02:52]}  dxc6 {[%clk 0:02:55]} 9. dxe5 {[%clk 0:02:52]}  Qxd1 {[%clk 0:02:47]} 10. Rxd1 {[%clk 0:02:52]}  Bg4 {[%clk 0:02:48]} 11. e6 {[%clk 0:02:49]}  Bxe6 {[%clk 0:02:45]} 12. Nd4 {[%clk 0:02:38]}  Bg4 {[%clk 0:02:43]} 13. Re1 {[%clk 0:02:38]}  O-O-O {[%clk 0:02:42]} 14. Be3 {[%clk 0:02:37]}  Rhe8 {[%clk 0:02:40]} 15. Nd2 {[%clk 0:02:33]}  Ne5 {[%clk 0:02:19]} 16. f3 {[%clk 0:02:23]}  Bd7 {[%clk 0:02:15]} 17. N2b3 {[%clk 0:02:19]}  c5 {[%clk 0:02:02]} 18. Nc2 {[%clk 0:02:12]}  b6 {[%clk 0:01:48]} 19. Rad1 {[%clk 0:02:04]}  a5 {[%clk 0:01:39]} 20. Nc1 {[%clk 0:02:00]}  Bb8 {[%clk 0:01:33]} 21. b3 {[%clk 0:02:00]}  a4 {[%clk 0:01:27]} 22. Nd3 {[%clk 0:01:56]}  Nxd3 {[%clk 0:01:21]} 23. Rxd3 {[%clk 0:01:57]}  Bb5 {[%clk 0:01:22]} 24. Rxd8+ {[%clk 0:01:53]}  Rxd8 {[%clk 0:01:22]} 25. c4 {[%clk 0:01:53]}  axb3 {[%clk 0:01:22]} 26. axb3 {[%clk 0:01:53]}  Be8 {[%clk 0:01:17]} 27. Bc1 {[%clk 0:01:44]}  c6 {[%clk 0:01:10]} 28. g3 {[%clk 0:01:43]}  b5 {[%clk 0:01:08]} 29. Kf2 {[%clk 0:01:41]}  f6 {[%clk 0:01:04]} 30. Ke2 {[%clk 0:01:38]}  Bf7 {[%clk 0:01:01]} 31. Ne3 {[%clk 0:01:38]}  Be5 {[%clk 0:00:56]} 32. Rd1 {[%clk 0:01:23]}  Bd4 {[%clk 0:00:54]} 33. Nf5 {[%clk 0:01:21]}  bxc4 {[%clk 0:00:53]} 34. Nxd4 {[%clk 0:01:12]}  cxd4 {[%clk 0:00:52]} 35. bxc4 {[%clk 0:01:10]}  Bxc4+ {[%clk 0:00:53]} 36. Kd2 {[%clk 0:01:08]}  c5 {[%clk 0:00:51]} 37. Ba3 {[%clk 0:01:07]}  Bb3 {[%clk 0:00:51]} 38. Rc1 {[%clk 0:00:51]}  c4 {[%clk 0:00:51]} 39. f4 {[%clk 0:00:49]}  Kb7 {[%clk 0:00:24]} 40. e5 {[%clk 0:00:47]}  fxe5 {[%clk 0:00:22]} 41. fxe5 {[%clk 0:00:48]}  Ra8 {[%clk 0:00:21]} 42. Bc5 {[%clk 0:00:46]}  Ra2+ {[%clk 0:00:19]} 43. Ke1 {[%clk 0:00:47]}  d3 {[%clk 0:00:19]} 44. Be3 {[%clk 0:00:46]}  Re2+ {[%clk 0:00:18]} 45. Kf1 {[%clk 0:00:47]}  Rxe3 {[%clk 0:00:19]} 46. Re1 {[%clk 0:00:46]}  Rxe1+ {[%clk 0:00:18]} 47. Kxe1 {[%clk 0:00:46]}  c3 {[%clk 0:00:19]} 48. e6 {[%clk 0:00:45]}  d2+ {[%clk 0:00:20]} 49. Kf2 {[%clk 0:00:45]}  d1=Q {[%clk 0:00:21]} 0-1


[Site "https://www.chess.com"]

[Event "Titled Tuesday Blitz March 07 Late 2023"]
[White "Kaplan, Avi Harrison"]
[Black "Bogaudinov, Rushan"]
[WhiteFideId "30934559"]
[BlackFideId "4129288"]
[WhiteElo "1983"]
[BlackElo "1949"]
[Result "0-1"]
[Round "06"]
[TimeControl "180+2"]
[Date "2023.03.07"]
[WhiteClock "0:00:04"]
[BlackClock "0:00:35"]

1. Nf3 {[%clk 0:02:49]}  d5 {[%clk 0:02:59]} 2. a3 {[%clk 0:02:44]}  g6 {[%clk 0:02:57]} 3. e3 {[%clk 0:02:43]}  Bg7 {[%clk 0:02:57]} 4. d4 {[%clk 0:02:41]}  Nf6 {[%clk 0:02:53]} 5. Be2 {[%clk 0:02:40]}  O-O {[%clk 0:02:53]} 6. O-O {[%clk 0:02:37]}  b6 {[%clk 0:02:47]} 7. b4 {[%clk 0:02:36]}  c5 {[%clk 0:02:43]} 8. bxc5 {[%clk 0:02:31]}  bxc5 {[%clk 0:02:44]} 9. c3 {[%clk 0:02:29]}  Ba6 {[%clk 0:02:34]} 10. Bxa6 {[%clk 0:02:20]}  Nxa6 {[%clk 0:02:35]} 11. Qa4 {[%clk 0:02:20]}  Qb6 {[%clk 0:02:33]} 12. Nbd2 {[%clk 0:02:17]}  c4 {[%clk 0:02:22]} 13. Rb1 {[%clk 0:02:15]}  Qd6 {[%clk 0:02:21]} 14. e4 {[%clk 0:02:10]}  Nxe4 {[%clk 0:02:16]} 15. Nxe4 {[%clk 0:02:10]}  dxe4 {[%clk 0:02:16]} 16. Nd2 {[%clk 0:02:10]}  Nc7 {[%clk 0:02:02]} 17. Nxe4 {[%clk 0:01:55]}  Qd5 {[%clk 0:01:45]} 18. Nd2 {[%clk 0:01:53]}  Rfc8 {[%clk 0:01:25]} 19. Nxc4 {[%clk 0:01:43]}  Ne6 {[%clk 0:01:22]} 20. Ne3 {[%clk 0:01:41]}  Qe4 {[%clk 0:01:20]} 21. Bd2 {[%clk 0:01:39]}  Nf4 {[%clk 0:01:18]} 22. Qc2 {[%clk 0:01:26]}  Qxc2 {[%clk 0:01:13]} 23. Nxc2 {[%clk 0:01:26]}  Ne2+ {[%clk 0:01:13]} 24. Kh1 {[%clk 0:01:27]}  Nxc3 {[%clk 0:01:13]} 25. Be3 {[%clk 0:01:18]}  Nxb1 {[%clk 0:01:07]} 26. Nb4 {[%clk 0:00:09]}  Nxa3 {[%clk 0:01:04]} 27. Nd5 {[%clk 0:00:09]}  Bf6 {[%clk 0:00:58]} 28. h4 {[%clk 0:00:07]}  Bxh4 {[%clk 0:00:55]} 29. g3 {[%clk 0:00:07]}  Bf6 {[%clk 0:00:55]} 30. Kg2 {[%clk 0:00:07]}  Nc2 {[%clk 0:00:54]} 31. g4 {[%clk 0:00:07]}  Nxe3+ {[%clk 0:00:50]} 32. fxe3 {[%clk 0:00:08]}  Rd8 {[%clk 0:00:45]} 33. Nc3 {[%clk 0:00:05]}  a5 {[%clk 0:00:44]} 34. g5 {[%clk 0:00:05]}  Bxg5 {[%clk 0:00:43]} 35. d5 {[%clk 0:00:06]}  a4 {[%clk 0:00:42]} 36. d6 {[%clk 0:00:06]}  Rxd6 {[%clk 0:00:40]} 37. Ne4 {[%clk 0:00:07]}  Rd5 {[%clk 0:00:40]} 38. Nxg5 {[%clk 0:00:05]}  Rxg5+ {[%clk 0:00:39]} 39. Kh2 {[%clk 0:00:05]}  a3 {[%clk 0:00:40]} 40. e4 {[%clk 0:00:06]}  a2 {[%clk 0:00:39]} 41. e5 {[%clk 0:00:07]}  a1=Q {[%clk 0:00:39]} 42. e6 {[%clk 0:00:07]}  Ra2+ {[%clk 0:00:37]} 43. Kh3 {[%clk 0:00:05]}  Qxf1+ {[%clk 0:00:37]} 44. Kh4 {[%clk 0:00:06]}  Qf4+ {[%clk 0:00:35]} 45. Kh3 {[%clk 0:00:04]}  Rh5# {[%clk 0:00:35]} 0-1


[Site "https://www.chess.com"]

[Event "Titled Tuesday Blitz March 07 Late 2023"]
[White "Romkachess"]
[Black "Rian, Kapriaga"]
[BlackFideId "7103263"]
[WhiteElo "2497"]
[BlackElo "2360"]
[Result "0-1"]
[Round "06"]
[TimeControl "180+2"]
[Date "2023.03.07"]
[WhiteClock "0:00:02"]
[BlackClock "0:00:53"]

1. e4 {[%clk 0:03:00]}  c6 {[%clk 0:02:53]} 2. d4 {[%clk 0:02:41]}  d5 {[%clk 0:02:51]} 3. Nc3 {[%clk 0:02:42]}  dxe4 {[%clk 0:02:50]} 4. Nxe4 {[%clk 0:02:43]}  Bf5 {[%clk 0:02:49]} 5. Ng3 {[%clk 0:02:42]}  Bg6 {[%clk 0:02:48]} 6. Bc4 {[%clk 0:02:42]}  e6 {[%clk 0:02:46]} 7. N1e2 {[%clk 0:02:43]}  h6 {[%clk 0:02:41]} 8. Nf4 {[%clk 0:02:41]}  Bh7 {[%clk 0:02:40]} 9. c3 {[%clk 0:02:41]}  Bd6 {[%clk 0:02:39]} 10. Ngh5 {[%clk 0:02:41]}  Bf8 {[%clk 0:02:35]} 11. Be3 {[%clk 0:02:40]}  Nf6 {[%clk 0:02:35]} 12. Qe2 {[%clk 0:02:36]}  Nxh5 {[%clk 0:02:33]} 13. Nxh5 {[%clk 0:02:36]}  Nd7 {[%clk 0:02:33]} 14. O-O-O {[%clk 0:02:24]}  Nf6 {[%clk 0:02:32]} 15. Nf4 {[%clk 0:02:20]}  Bd6 {[%clk 0:02:29]} 16. g4 {[%clk 0:02:01]}  Qc7 {[%clk 0:02:16]} 17. Nd3 {[%clk 0:01:40]}  b5 {[%clk 0:02:10]} 18. Bb3 {[%clk 0:01:39]}  Nd5 {[%clk 0:02:02]} 19. Bd2 {[%clk 0:01:32]}  a5 {[%clk 0:01:51]} 20. Ne5 {[%clk 0:01:05]}  a4 {[%clk 0:01:44]} 21. Bxd5 {[%clk 0:00:33]}  cxd5 {[%clk 0:01:42]} 22. Qxb5+ {[%clk 0:00:33]}  Ke7 {[%clk 0:01:38]} 23. Bf4 {[%clk 0:00:21]}  Rhc8 {[%clk 0:01:17]} 24. Rhe1 {[%clk 0:00:04]}  a3 {[%clk 0:01:15]} 25. Re3 {[%clk 0:00:03]}  axb2+ {[%clk 0:01:12]} 26. Kd2 {[%clk 0:00:03]}  Rxa2 {[%clk 0:01:06]} 27. Rb1 {[%clk 0:00:03]}  Bxb1 {[%clk 0:01:06]} 28. Nxf7 {[%clk 0:00:02]}  Kxf7 {[%clk 0:01:03]} 29. Bxd6 {[%clk 0:00:02]}  Qxd6 {[%clk 0:01:01]} 30. Rf3+ {[%clk 0:00:02]}  Kg8 {[%clk 0:01:00]} 31. Qb7 {[%clk 0:00:03]}  Qc7 {[%clk 0:00:55]} 32. Qb4 {[%clk 0:00:02]}  Be4 {[%clk 0:00:53]} 0-1


[Site "https://www.chess.com"]

[Event "Titled Tuesday Blitz March 07 Late 2023"]
[White "Poeta, Caio Medeiros"]
[Black "Kujawski, Adam"]
[WhiteFideId "2142660"]
[BlackFideId "1100920"]
[WhiteElo "2191"]
[BlackElo "2054"]
[Result "1-0"]
[Round "06"]
[TimeControl "180+2"]
[Date "2023.03.07"]
[WhiteClock "0:01:21"]
[BlackClock "0:00:03"]

1. d4 {[%clk 0:03:00]}  Nf6 {[%clk 0:02:55]} 2. c4 {[%clk 0:03:00]}  e6 {[%clk 0:02:55]} 3. g3 {[%clk 0:03:00]}  c5 {[%clk 0:02:54]} 4. Nf3 {[%clk 0:03:00]}  cxd4 {[%clk 0:02:53]} 5. Nxd4 {[%clk 0:03:00]}  d5 {[%clk 0:02:54]} 6. Bg2 {[%clk 0:03:00]}  e5 {[%clk 0:02:53]} 7. Nf3 {[%clk 0:03:00]}  d4 {[%clk 0:02:54]} 8. O-O {[%clk 0:03:01]}  Nc6 {[%clk 0:02:54]} 9. e3 {[%clk 0:03:01]}  Be7 {[%clk 0:02:33]} 10. exd4 {[%clk 0:03:01]}  exd4 {[%clk 0:02:34]} 11. b3 {[%clk 0:03:02]}  O-O {[%clk 0:02:13]} 12. Bb2 {[%clk 0:03:03]}  Bg4 {[%clk 0:02:12]} 13. Nbd2 {[%clk 0:03:01]}  Bb4 {[%clk 0:01:46]} 14. a3 {[%clk 0:02:59]}  Bc3 {[%clk 0:01:46]} 15. Qc2 {[%clk 0:02:52]}  Bxb2 {[%clk 0:01:30]} 16. Qxb2 {[%clk 0:02:53]}  Qd6 {[%clk 0:01:21]} 17. b4 {[%clk 0:02:52]}  Rad8 {[%clk 0:01:17]} 18. c5 {[%clk 0:02:48]}  Qd5 {[%clk 0:01:05]} 19. h3 {[%clk 0:02:35]}  Be6 {[%clk 0:00:57]} 20. Rfd1 {[%clk 0:02:28]}  Qh5 {[%clk 0:00:55]} 21. g4 {[%clk 0:02:27]}  Nxg4 {[%clk 0:00:41]} 22. hxg4 {[%clk 0:02:28]}  Bxg4 {[%clk 0:00:42]} 23. Re1 {[%clk 0:02:28]}  Bh3 {[%clk 0:00:23]} 24. Nf1 {[%clk 0:02:04]}  Bxg2 {[%clk 0:00:22]} 25. Kxg2 {[%clk 0:02:04]}  Rd5 {[%clk 0:00:18]} 26. Ng3 {[%clk 0:02:02]}  Qg6 {[%clk 0:00:17]} 27. Nh4 {[%clk 0:01:50]}  Qg4 {[%clk 0:00:15]} 28. Re4 {[%clk 0:01:48]}  Qd7 {[%clk 0:00:14]} 29. Rae1 {[%clk 0:01:47]}  f5 {[%clk 0:00:12]} 30. Ngxf5 {[%clk 0:01:24]}  Rdxf5 {[%clk 0:00:12]} 31. Nxf5 {[%clk 0:01:24]}  Qxf5 {[%clk 0:00:12]} 32. Qb3+ {[%clk 0:01:21]}  Kh8 {[%clk 0:00:11]} 33. Qg3 {[%clk 0:01:21]}  h6 {[%clk 0:00:06]} 34. Re8 {[%clk 0:01:21]}  Kh7 {[%clk 0:00:05]} 35. Rxf8 {[%clk 0:01:21]}  Qxf8 {[%clk 0:00:06]} 36. Qd3+ {[%clk 0:01:21]}  g6 {[%clk 0:00:03]} 37. b5 {[%clk 0:01:21]} 1-0


[Site "https://www.chess.com"]

[Event "Titled Tuesday Blitz March 07 Late 2023"]
[White "Dzida, Kamil"]
[Black "Torres Dominguez, David"]
[WhiteFideId "21828652"]
[BlackFideId "2220857"]
[WhiteElo "2139"]
[BlackElo "1999"]
[Result "0-1"]
[Round "06"]
[TimeControl "180+2"]
[Date "2023.03.07"]
[WhiteClock "0:00:40"]
[BlackClock "0:00:43"]

1. d4 {[%clk 0:03:00]}  e5 {[%clk 0:03:00]} 2. c4 {[%clk 0:03:00]}  d6 {[%clk 0:03:00]} 3. Nf3 {[%clk 0:02:59]}  e4 {[%clk 0:03:00]} 4. Nfd2 {[%clk 0:02:56]}  f5 {[%clk 0:03:00]} 5. e3 {[%clk 0:02:52]}  Nf6 {[%clk 0:03:01]} 6. Nc3 {[%clk 0:02:51]}  g6 {[%clk 0:03:01]} 7. f3 {[%clk 0:02:51]}  exf3 {[%clk 0:02:58]} 8. Qxf3 {[%clk 0:02:52]}  Bg7 {[%clk 0:02:58]} 9. Bd3 {[%clk 0:02:53]}  O-O {[%clk 0:02:57]} 10. O-O {[%clk 0:02:53]}  Nc6 {[%clk 0:02:44]} 11. b3 {[%clk 0:02:47]}  Qe7 {[%clk 0:02:34]} 12. Bb2 {[%clk 0:02:42]}  Bd7 {[%clk 0:02:31]} 13. Rae1 {[%clk 0:02:42]}  Rae8 {[%clk 0:02:29]} 14. Bb1 {[%clk 0:02:36]}  Ng4 {[%clk 0:02:24]} 15. Nd5 {[%clk 0:02:32]}  Qd8 {[%clk 0:02:08]} 16. h3 {[%clk 0:02:19]}  Nf6 {[%clk 0:02:07]} 17. Nf4 {[%clk 0:02:19]}  Re7 {[%clk 0:01:34]} 18. a3 {[%clk 0:01:50]}  Qe8 {[%clk 0:01:33]} 19. b4 {[%clk 0:01:39]}  g5 {[%clk 0:01:33]} 20. Nd3 {[%clk 0:01:24]}  g4 {[%clk 0:01:33]} 21. Qd1 {[%clk 0:01:13]}  gxh3 {[%clk 0:01:28]} 22. gxh3 {[%clk 0:01:09]}  Rxe3 {[%clk 0:01:25]} 23. b5 {[%clk 0:01:09]}  Qg6+ {[%clk 0:01:12]} 24. Kh2 {[%clk 0:00:42]}  Qg3+ {[%clk 0:01:11]} 25. Kh1 {[%clk 0:00:43]}  Qxh3+ {[%clk 0:01:07]} 26. Kg1 {[%clk 0:00:43]}  Qg3+ {[%clk 0:01:06]} 27. Kh1 {[%clk 0:00:43]}  Qh4+ {[%clk 0:01:01]} 28. Kg2 {[%clk 0:00:41]}  Rg3+ {[%clk 0:00:45]} 29. Kf2 {[%clk 0:00:40]}  Qh2# {[%clk 0:00:43]} 0-1


[Site "https://www.chess.com"]

[Event "Titled Tuesday Blitz March 07 Late 2023"]
[White "Pein, Jonathan"]
[Black "Antonova, Nadezhda"]
[WhiteFideId "417092"]
[BlackFideId "14700182"]
[WhiteElo "2151"]
[BlackElo "1885"]
[Result "1-0"]
[Round "06"]
[TimeControl "180+2"]
[Date "2023.03.07"]
[WhiteClock "0:01:19"]
[BlackClock "0:00:16"]

1. e4 {[%clk 0:03:00]}  c6 {[%clk 0:02:59]} 2. b3 {[%clk 0:02:51]}  e5 {[%clk 0:02:51]} 3. Bb2 {[%clk 0:02:51]}  d6 {[%clk 0:02:51]} 4. d4 {[%clk 0:02:51]}  Nd7 {[%clk 0:02:48]} 5. Nf3 {[%clk 0:02:51]}  exd4 {[%clk 0:02:44]} 6. Qxd4 {[%clk 0:02:52]}  Ngf6 {[%clk 0:02:38]} 7. Nc3 {[%clk 0:02:53]}  Be7 {[%clk 0:02:38]} 8. O-O-O {[%clk 0:02:53]}  O-O {[%clk 0:02:39]} 9. Kb1 {[%clk 0:02:51]}  b5 {[%clk 0:02:37]} 10. g4 {[%clk 0:02:40]}  Ne5 {[%clk 0:02:28]} 11. Nxe5 {[%clk 0:02:39]}  dxe5 {[%clk 0:02:25]} 12. Qxe5 {[%clk 0:02:39]}  Qe8 {[%clk 0:02:22]} 13. g5 {[%clk 0:02:36]}  Ng4 {[%clk 0:02:22]} 14. Qg3 {[%clk 0:02:28]}  Bc5 {[%clk 0:02:11]} 15. f4 {[%clk 0:01:59]}  Nf2 {[%clk 0:02:05]} 16. Bd3 {[%clk 0:02:00]}  Nxh1 {[%clk 0:02:01]} 17. Rxh1 {[%clk 0:02:01]}  Bd4 {[%clk 0:01:46]} 18. e5 {[%clk 0:02:01]}  b4 {[%clk 0:01:43]} 19. Qh4 {[%clk 0:02:00]}  g6 {[%clk 0:01:41]} 20. Ne4 {[%clk 0:02:00]}  f5 {[%clk 0:01:32]} 21. Nd6 {[%clk 0:01:50]}  Qe7 {[%clk 0:01:03]} 22. Bxd4 {[%clk 0:01:40]}  a5 {[%clk 0:01:02]} 23. Qf2 {[%clk 0:01:29]}  Be6 {[%clk 0:00:59]} 24. Qe2 {[%clk 0:01:29]}  a4 {[%clk 0:00:58]} 25. Bc4 {[%clk 0:01:29]}  axb3 {[%clk 0:00:57]} 26. axb3 {[%clk 0:01:27]}  Ra3 {[%clk 0:00:54]} 27. Bxe6+ {[%clk 0:01:27]}  Qxe6 {[%clk 0:00:54]} 28. Qc4 {[%clk 0:01:28]}  Qxc4 {[%clk 0:00:52]} 29. Nxc4 {[%clk 0:01:29]}  Ra6 {[%clk 0:00:47]} 30. e6 {[%clk 0:01:25]}  Re8 {[%clk 0:00:43]} 31. Re1 {[%clk 0:01:20]}  c5 {[%clk 0:00:43]} 32. Bxc5 {[%clk 0:01:20]}  Raxe6 {[%clk 0:00:44]} 33. Rxe6 {[%clk 0:01:20]}  Rxe6 {[%clk 0:00:44]} 34. Ne5 {[%clk 0:01:21]}  Kg7 {[%clk 0:00:36]} 35. Bxb4 {[%clk 0:01:21]}  h6 {[%clk 0:00:36]} 36. h4 {[%clk 0:01:21]}  hxg5 {[%clk 0:00:36]} 37. hxg5 {[%clk 0:01:22]}  Re8 {[%clk 0:00:33]} 38. Bc3 {[%clk 0:01:22]}  Kg8 {[%clk 0:00:29]} 39. Kb2 {[%clk 0:01:19]}  Kh7 {[%clk 0:00:27]} 40. b4 {[%clk 0:01:19]}  Rd8 {[%clk 0:00:19]} 41. Nd3 {[%clk 0:01:20]}  Rc8 {[%clk 0:00:18]} 42. Kb3 {[%clk 0:01:19]}  Re8 {[%clk 0:00:18]} 43. Be5 {[%clk 0:01:19]}  Kg8 {[%clk 0:00:17]} 44. b5 {[%clk 0:01:19]}  Kf7 {[%clk 0:00:17]} 45. b6 {[%clk 0:01:19]}  Ke6 {[%clk 0:00:17]} 46. b7 {[%clk 0:01:19]}  Kd5 {[%clk 0:00:16]} 47. b8=Q {[%clk 0:01:19]} 1-0


[Site "https://www.chess.com"]